Workbook

Sheet Start
B2: Annexure-18 - Commercial Annexure
B3: Selection of System Integrator to establish Testing Center of Excellence for LIC
B4: Ref: LIC/CO/IT-SD/EFEAP-NEXT/TCOE/23-24/01 Dated: 28-03-2024
C6: Enter Bidder Name
D8: Instructions related to entering quotes
D9: Excel Cells where Bidder has to input values, are unlocked.
D11: The bidder will have to compulsorily quote prices for each line item. The quote should be for each line item and as per exact specifications called for in the Technical Bid.
D12: The Quantities are indicative and may vary, however, actual quantities will be as reflected in the Purchase Orders .
D13: LIC may purchase additional quantities at the Approved Rate for all the components by giving additional Purchase Order(s).
D14: The quotes should be in integer only (i.e. non decimal).
D19: TOTAL COST of OWNERSHIP | E19: Total Discounted Cost of Ownership
C20: Part-I Quote | D20: ='Part-I'!L26 -> 1905 | E20: ='Part-I'!M26 -> 1588.72
C21: Part-II Quote | D21: ='Part-II'!I29 -> 5400 | E21: ='Part-II'!J29 -> 4503.45
C22: TCO | D22: =SUM(D20:D21) -> 7305 | E22: =SUM(E20:E21) -> 6092.17
C24: Date: | D24: dd-mm-yyyy
D26: Signature of Vendor/Vendor's Representative

Sheet Part-I
A1: =Start!B2 -> Annexure-18 - Commercial Annexure
A2: =Start!B3 -> Selection of System Integrator to establish Testing Center of Excellence for LIC
A3: =Start!B4 -> Ref: LIC/CO/IT-SD/EFEAP-NEXT/TCOE/23-24/01 Dated: 28-03-2024
A5: Bidder:
A6: Part I - Quote for Software License/Subscrption/AMC/ATS Cost
A8: Sl. No. | B8: Item | C8: Quantity/Number | D8: Open Source Software Name and version at Zero cost | E8: Paid software name and version | F8: License/subscription Base(User/Application/Core/Server) for paid software | G8: License/Subscrition/AMC/ATS Cost for Paid SW Per unit for each year | L8: Total Cost Excluding GST | M8: Total Discouted Cost @NPV excluding GST
G9: Year 1 | H9: Year 2 | I9: Year 3 | J9: Year 4 | K9: Year 5 | L9: (Sum of Yearly cost * Quantity) | M9: (Sum of Yearly cost @NPV * Quantity)
A10: 1 | B10: Software Licenses/Subscriptions | G10: 1 | H10: 0.90909 | I10: 0.82645 | J10: 0.75131 | K10: 0.68301
A11: 1A | B11: Test Management/ Test Ops Software | C11: 50 | F11: Per user | G11: 1 | H11: 1 | I11: 1 | J11: 1 | K11: 1 | L11: =(G11+H11+I11+J11+K11)*C11 -> 250 | M11: =ROUND((G11*$G$10+H11*$H$10+I11*$I$10+J11*$J$10+K11*$K$10)*C11,2) -> 208.49
A12: 1B | B12: [For Test automation SW, If same SW is proposed for all three or any two, cost may be given as zero for the subsequent entry]
B13: Test Automation (Web Browser) | C13: 20 | F13: Per user | G13: 1 | H13: 1 | I13: 1 | J13: 1 | K13: 1 | L13: =(G13+H13+I13+J13+K13)*C13 -> 100 | M13: =ROUND((G13*$G$10+H13*$H$10+I13*$I$10+J13*$J$10+K13*$K$10)*C13,2) -> 83.4
B14: Test Automation (Desktop Application) | C14: 20 | F14: Per user | G14: 1 | H14: 1 | I14: 1 | J14: 1 | K14: 1 | L14: 100 | M14: =ROUND((G14*$G$10+H14*$H$10+I14*$I$10+J14*$J$10+K14*$K$10)*C14,2) -> 83.4
B15: Test Automation (Mobile Application) | C15: 20 | F15: Per user | G15: 1 | H15: 1 | I15: 1 | J15: 1 | K15: 1 | L15: 100 | M15: 83.4
A16: 1C | B16: API Testing Software | C16: 20 | F16: Per user | G16: 1 | H16: 1 | I16: 1 | J16: 1 | K16: 1 | L16: 100 | M16: 83.4
A17: 1D | B17: Performance Testing Software (along with load injector license) with/for 10000 concurrency | C17: 1 | F17: For 10000 virtual/ concurrent users | G17: 1 | H17: 1 | I17: 1 | J17: 1 | K17: 1 | L17: 5 | M17: =ROUND((G17*$G$10+H17*$H$10+I17*$I$10+J17*$J$10+K17*$K$10)*C17,2) -> 4.17
A18: 1E | B18: Application Performance Monitoring Software | C18: 50 | F18: Per agent | G18: 1 | H18: 1 | I18: 1 | J18: 1 | K18: 1 | L18: 250 | M18: =ROUND((G18*$G$10+H18*$H$10+I18*$I$10+J18*$J$10+K18*$K$10)*C18,2) -> 208.49
A19: 1F | B19: Defect Management Software | C19: 200 | F19: Per user | G19: 1 | H19: 1 | I19: 1 | J19: 1 | K19: 1 | L19: 1000 | M19: =ROUND((G19*$G$10+H19*$H$10+I19*$I$10+J19*$J$10+K19*$K$10)*C19,2) -> 833.97
A20: 2 | B20: Other Software/Tools(If required)
A21: 2A | B21: OS License Other than RHEL (Also Quote quantity as per requirement) | C21: 0 | G21: 0 | H21: 0 | I21: 0 | J21: 0 | K21: 0 | L21: 0 | M21: =ROUND((G21*$G$10+H21*$H$10+I21*$I$10+J21*$J$10+K21*$K$10)*C21,2) -> 0
A22: 2B | B22: DB license Other than MySQL (Also Quote quantity as per requirement) | C22: 0 | G22: 0 | H22: 0 | I22: 0 | J22: 0 | K22: 0 | L22: 0 | M22: =ROUND((G22*$G$10+H22*$H$10+I22*$I$10+J22*$J$10+K22*$K$10)*C22,2) -> 0
A23: 2C | B23: Any Other Software (Also Quote quantity as per requirement) | C23: 0 | G23: 0 | H23: 0 | I23: 0 | J23: 0 | K23: 0 | L23: 0 | M23: 0
A24: 2D | B24: Any Other Software (Also Quote quantity as per requirement) | C24: 0 | G24: 0 | H24: 0 | I24: 0 | J24: 0 | K24: 0 | L24: 0 | M24: 0
A25: 2E | B25: Any Other Software (Also Quote quantity as per requirement) | C25: 0 | G25: 0 | H25: 0 | I25: 0 | J25: 0 | K25: 0 | L25: 0 | M25: 0
A26: Total | L26: =SUM(L10:L25) -> 1905 | M26: =SUM(M10:M25) -> 1588.72 | T26: =SUM(T10:T19) -> 0
B30: The Number/Quantiy quoted above are for TCO purpose only. Actual requirement/deployment will be decided by LIC based on this rate card.
B32: Signature of Vendor's Representative | F32: Date | G32: dd-mm-yyyy

Sheet Part-II
A1: =Start!B2 -> Annexure-18 - Commercial Annexure
A2: =Start!B3 -> Selection of System Integrator to establish Testing Center of Excellence for LIC
A3: =Start!B4 -> Ref: LIC/CO/IT-SD/EFEAP-NEXT/TCOE/23-24/01 Dated: 28-03-2024
A5: Bidder:
A6: Part II - Quote for Onsite Testing Resources and Mobile/TAB rental
A8: Sl. No. | B8: Item | C8: Number/Quantity | D8: Quote Per unit Year-1 | E8: Quote Per unit Year-2 | F8: Quote Per unit Year-3 | G8: Quote Per unit Year-4 | H8: Quote Per unit Year-5 | I8: Total Cost Excluding GST | J8: Total Discouted Cost @NPV excluding GST
D9: 1 | E9: 0.90909 | F9: 0.82645 | G9: 0.75131 | H9: 0.68301 | I9: (Total of Monthly Cost*Quantity * 12) | J9: (Total of Monthly Cost @NPV *Quantity * 12)
A10: 1 | B10: TCoE Resources cost | D10: Cost of per resource per Man month
A11: 1A | B11: Project manager/TCoE Lead | C11: 1 | D11: 1 | E11: 1 | F11: 1 | G11: 1 | H11: 1 | I11: =(D11+E11+F11+G11+H11)*C11*12 -> 60 | J11: =ROUND((D11*$D$9+E11*$E$9+F11*$F$9+G11*$G$9+H11*$H$9)*C11*12,2) -> 50.04
A12: 1B | B12: Test/Quality Lead | C12: 2 | D12: 1 | E12: 1 | F12: 1 | G12: 1 | H12: 1 | I12: =(D12+E12+F12+G12+H12)*C12*12 -> 120 | J12: =ROUND((D12*$D$9+E12*$E$9+F12*$F$9+G12*$G$9+H12*$H$9)*C12*12,2) -> 100.08
A13: 1C | B13: Test Architect (Automation) | C13: 1 | D13: 1 | E13: 1 | F13: 1 | G13: 1 | H13: 1 | I13: 60 | J13: 50.04
A14: 1D | B14: Sr. SW test Engineer | C14: 5 | D14: 1 | E14: 1 | F14: 1 | G14: 1 | H14: 1 | I14: 300 | J14: 250.19
A15: 1E | B15: Jr. SW Test Engineer | C15: 10 | D15: 1 | E15: 1 | F15: 1 | G15: 1 | H15: 1 | I15: 600 | J15: 500.38
A16: 1F | B16: Sr. SW Test Engineer (Automation) | C16: 5 | D16: 1 | E16: 1 | F16: 1 | G16: 1 | H16: 1 | I16: 300 | J16: 250.19
A17: 1G | B17: Jr. SW Test Engineer (Automation) | C17: 10 | D17: 1 | E17: 1 | F17: 1 | G17: 1 | H17: 1 | I17: 600 | J17: 500.38
A18: 1H | B18: Sr. performance test Engineer | C18: 2 | D18: 1 | E18: 1 | F18: 1 | G18: 1 | H18: 1 | I18: 120 | J18: 100.08
A19: 1I | B19: Jr. Performance Test Engineer | C19: 5 | D19: 1 | E19: 1 | F19: 1 | G19: 1 | H19: 1 | I19: 300 | J19: 250.19
A20: 1J | B20: Subject Matter Expert/ Business Analyst | C20: 7 | D20: 1 | E20: 1 | F20: 1 | G20: 1 | H20: 1 | I20: 420 | J20: 350.27
A21: 1K | B21: Test Environment Support Engineer | C21: 2 | D21: 1 | E21: 1 | F21: 1 | G21: 1 | H21: 1 | I21: 120 | J21: 100.08
A22: 2 | B22: Mobile/TAB rental cost | D22: Unit Rental Cost Per Mobile or TAB Per Month
A23: 2A | B23: Physical Android Mobile/ TAB device Rental Cost | C23: 8 | D23: 1 | E23: 1 | F23: 1 | G23: 1 | H23: 1 | I23: 480 | J23: 400.31
A24: 2B | B24: Physical iOS Mobile/ TAB deviceRental cost | C24: 4 | D24: 1 | E24: 1 | F24: 1 | G24: 1 | H24: 1 | I24: 240 | J24: 200.15
A25: 2C | B25: Physical Windows OS Mobile/ TAB device Rental cost | C25: 2 | D25: 1 | E25: 1 | F25: 1 | G25: 1 | H25: 1 | I25: 120 | J25: 100.08
A26: 2D | B26: Android Mobile/ TAB Rental Cost hosted in Public/Private Cloud | C26: 15 | D26: 1 | E26: 1 | F26: 1 | G26: 1 | H26: 1 | I26: 900 | J26: 750.57
A27: 2E | B27: iOS Mobile/ TAB Rental Cost hosted in Public/Private Cloud | C27: 7 | D27: 1 | E27: 1 | F27: 1 | G27: 1 | H27: 1 | I27: 420 | J27: 350.27
A28: 2F | B28: Windows Mobile/ TAB Rental Cost hosted in Public/Private Cloud | C28: 4 | D28: 1 | E28: 1 | F28: 1 | G28: 1 | H28: 1 | I28: 240 | J28: 200.15
B29: TOTAL | I29: =SUM(I11:I28) -> 5400 | J29: =SUM(J11:J28) -> 4503.45
B32: The Number/Quantity quoted above are for TCO purpose only. Actual requirement/deployment will be decided by LIC based on this rate card.
B34: Signature of Vendor's Representative | E34: Date: | F34: dd-mm-yyyy
